[Event "IV Estrellas 2022"]
[Site "La Palma"]
[Date "2022.08.07"]
[Round "2.10"]
[White "Arnaiz Yanes, Miguel Angel"]
[Black "Roeder, Matthias"]
[Result "0-1"]
[ECO "D03"]
[WhiteElo "1923"]
[BlackElo "2357"]
[Annotator "RC"]
[PlyCount "86"]
[EventDate "2022.08.06"]
[EventType "swiss"]
[EventCountry "ESP"]
[SourceTitle "playchess.com"]
[Source "ChessBase"]
[SourceQuality "1"]
[TimeControl "5400+30"]

1. d4 {[%emt 0:00:05]} d5 {[%emt 0:00:10]} 2. Nf3 {[%emt 0:00:07]} Nf6 {[%emt 0:00:20]} 3. Bg5 {[%emt 0:00:45]} Ne4 {[%emt 0:00:27]} 4. Bf4 {[%emt 0:00:08]} c5 {[%emt 0:00:44]} 5. Bxb8 {[%emt 0:00:31]} Rxb8 {[%emt 0:05:07]} 6. c3 {[%emt 0:00:21]} Qb6 {[%emt 0:05:05]} 7. Qb3 {[%emt 0:01:19]} e6 {[%emt 0:01:07]} 8. e3 {[%emt 0:00:42]} Bd6 {[%emt 0:04:50]} 9. Qxb6 {[%emt 0:03:08]} axb6 {[%emt 0:00:07]} 10. Bb5+ {[%emt 0:00:17]} Bd7 {[%emt 0:04:34]} 11. Bxd7+ {[%emt 0:00:54]} Kxd7 {[%emt 0:00:08]} 12. Ne5+ {[%emt 0:00:32]} Ke7 {[%emt 0:03:54]} 13. Nd2 {[%emt 0:00:40]} b5 {[%emt 0:05:25]} 14. f3 {[%emt 0:01:36]} Nxd2 {[%emt 0:07:54]} 15. Kxd2 {[%emt 0:00:16]} b4 {[%emt 0:00:38]} 16. Nd3 {[%emt 0:07:18]} bxc3+ {[%emt 0:00:35]} 17. bxc3 {[%emt 0:00:26]} c4 {[%emt 0:01:32]} 18. Nb4 {[%emt 0:04:00]} Ra8 {[%emt 0:02:14]} 19. Nc2 {[%emt 0:02:06]} Kd7 {[%emt 0:03:56]} 20. Rhb1 {[%emt 0:02:46]} Kc6 {[%emt 0:02:43]} 21. h3 {[%emt 0:03:59]} Ra4 {[%emt 0:03:52]} 22. Rb2 {[%emt 0:01:36]} Rha8 {[%emt 0:02:47]} 23. Rab1 {[%emt 0:03:38]} R8a7 {[%emt 0:00:05]} 24. Ra1 {[%emt 0:01:11]} b5 {[%emt 0:03:51]} 25. Kd1 {[%emt 0:10:09]} g5 {[%emt 0:02:07]} 26. e4 {[%emt 0:07:26]} h5 {[%emt 0:00:57]} 27. e5 {[%emt 0:00:12]} Ba3 {[%emt 0:03:16]} 28. Rbb1 {[%emt 0:04:34]} h4 {[%emt 0:04:36]} 29. Ke2 {[%emt 0:02:03]} Be7 {[%emt 0:00:42]} 30. Rb2 {[%emt 0:00:20]} f6 {[%emt 0:00:39]} 31. exf6 {[%emt 0:05:25]} Bxf6 {[%emt 0:00:06]} 32. Kd2 {[%emt 0:00:52]} R4a5 {[%emt 0:09:30]} 33. Re1 {[%emt 0:01:05]} Kd7 {[%emt 0:03:52]} 34. Reb1 {[%emt 0:04:25]} Kc6 {[%emt 0:02:11]} 35. Re1 {[%emt 0:00:06]} Re7 {[%emt 0:00:30]} 36. Kc1 {[%emt 0:02:25]} Kd6 {[%emt 0:00:08]} 37. Nb4 {[%emt 0:00:25]} Ra3 {[%emt 0:00:56]} 38. Rc2 {[%emt 0:00:21]} e5 {[%emt 0:02:20]} 39. Kb2 {[%emt 0:00:24]} Ra4 {[%emt 0:00:08]} 40. dxe5+ {[%emt 0:02:40]} Bxe5 {[%emt 0:00:18]} 41. Nxd5 {[%emt 0:03:54]} Kxd5 {[%emt 0:00:07]} 42. Rd2+ {[%emt 0:00:05]} Ke6 {[%emt 0:00:31]} 43. Re4 {[%emt 0:01:07]} b4 {[%emt 0:17:01]} 0-1

[Event "IV Estrellas 2022"]
[Site "La Palma"]
[Date "2022.08.07"]
[Round "2.11"]
[White "Garcia Blanco, Omar"]
[Black "Rodriguez Miranda, Sergio"]
[Result "1-0"]
[ECO "C09"]
[WhiteElo "2352"]
[BlackElo "1906"]
[Annotator "RC"]
[PlyCount "95"]
[EventDate "2022.08.06"]
[EventType "swiss"]
[EventCountry "ESP"]
[SourceTitle "playchess.com"]
[Source "ChessBase"]
[SourceQuality "1"]
[TimeControl "5400+30"]

1. e4 {[%emt 0:00:08]} e6 {[%emt 0:00:27]} 2. d4 {[%emt 0:00:09]} d5 {[%emt 0:00:12]} 3. Nd2 {[%emt 0:00:10]} c5 {[%emt 0:00:51]} 4. exd5 {[%emt 0:00:15]} exd5 {[%emt 0:00:35]} 5. Ngf3 {[%emt 0:00:38]} Nc6 {[%emt 0:01:21]} 6. Bb5 {[%emt 0:00:20]} Bd6 {[%emt 0:01:08]} 7. dxc5 {[%emt 0:00:12]} Bxc5 {[%emt 0:00:09]} 8. O-O {[%emt 0:00:22]} Nge7 {[%emt 0:00:48]} 9. Nb3 {[%emt 0:00:25]} Bd6 {[%emt 0:02:22]} 10. Re1 {[%emt 0:00:33]} O-O {[%emt 0:01:02]} 11. h3 {[%emt 0:00:17]} Bf5 {[%emt 0:03:08]} 12. Bd3 {[%emt 0:00:31]} Qd7 {[%emt 0:02:54]} 13. Bxf5 {[%emt 0:00:31]} Qxf5 {[%emt 0:00:56]} 14. Nbd4 {[%emt 0:00:56]} Qg6 {[%emt 0:04:16]} 15. c3 {[%emt 0:03:28]} h6 {[%emt 0:08:02]} 16. Qb3 {[%emt 0:03:33]} Rab8 {[%emt 0:10:31]} 17. Nb5 {[%emt 0:00:30]} Bc5 {[%emt 0:09:31]} 18. Be3 {[%emt 0:02:48]} Bxe3 {[%emt 0:06:35]} 19. Rxe3 {[%emt 0:00:07]} a6 {[%emt 0:00:09]} 20. Nbd4 {[%emt 0:01:31]} Rfd8 {[%emt 0:05:13]} 21. Rd1 {[%emt 0:07:54]} Rd7 {[%emt 0:05:39]} 22. Rd2 {[%emt 0:35:37]} Rbd8 {[%emt 0:07:30]} 23. Qd1 {[%emt 0:00:40]} Qf6 {[%emt 0:02:02]} 24. Nxc6 {[%emt 0:01:24]} Nxc6 {[%emt 0:02:52]} 25. Red3 {[%emt 0:00:12]} Qf5 {[%emt 0:06:17]} 26. Nd4 {[%emt 0:01:48]} Qe4 {[%emt 0:01:46]} 27. Re3 {[%emt 0:02:01]} Qf4 {[%emt 0:01:36]} 28. Qe2 {[%emt 0:00:46]} Qf6 {[%emt 0:02:42]} 29. Nxc6 {[%emt 0:07:31]} Qxc6 {[%emt 0:00:47]} 30. Rd4 {[%emt 0:00:06]} b5 {[%emt 0:01:09]} 31. Qd2 {[%emt 0:00:33]} Kf8 {[%emt 0:00:13]} 32. Red3 {[%emt 0:00:55]} Ke8 {[%emt 0:01:27]} 33. Rg3 {[%emt 0:00:21]} Kf8 {[%emt 0:00:32]} 34. Rdg4 {[%emt 0:00:24]} Qf6 {[%emt 0:00:18]} 35. Rf3 {[%emt 0:06:14]} Qe5 {[%emt 0:02:48]} 36. Rd4 {[%emt 0:00:07]} Qe6 {[%emt 0:00:29]} 37. Rfd3 {[%emt 0:00:09]} Qc6 {[%emt 0:00:15]} 38. b3 {[%emt 0:00:13]} Ke8 {[%emt 0:00:15]} 39. Rg3 {[%emt 0:00:14]} Kf8 {[%emt 0:01:27]} 40. Rdg4 {[%emt 0:00:11]} Qf6 {[%emt 0:05:49]} 41. Rf3 {[%emt 0:00:06]} Qb6 {[%emt 0:01:01]} 42. Qd3 {[%emt 0:00:43]} Rd6 {[%emt 0:01:33]} 43. Qh7 {[%emt 0:00:31]} Rf6 {[%emt 0:02:09]} 44. Qxg7+ {[%emt 0:00:56]} Ke7 {[%emt 0:00:10]} 45. Rg6 {[%emt 0:02:08]} Rdd6 {[%emt 0:01:27]} 46. Rgxf6 {[%emt 0:00:21]} Rxf6 {[%emt 0:00:07]} 47. Re3+ {[%emt 0:00:12]} Re6 {[%emt 0:00:21]} 48. Qxh6 {[%emt 0:00:35]} 1-0

[Event "IV Estrellas 2022"]
[Site "La Palma"]
[Date "2022.08.07"]
[Round "2.12"]
[White "Segura Marsa, Andres"]
[Black "Herrera Reyes, Jose Antonio"]
[Result "0-1"]
[ECO "B40"]
[WhiteElo "1849"]
[BlackElo "2345"]
[Annotator "RC"]
[PlyCount "36"]
[EventDate "2022.08.06"]
[EventType "swiss"]
[EventCountry "ESP"]
[SourceTitle "playchess.com"]
[Source "ChessBase"]
[SourceQuality "1"]
[TimeControl "5400+30"]

1. e4 {[%emt 0:00:06]} c5 {[%emt 0:00:10]} 2. Nf3 {[%emt 0:00:22]} e6 {[%emt 0:00:06]} 3. Nc3 {[%emt 0:00:52]} a6 {[%emt 0:00:24]} 4. g3 {[%emt 0:00:43]} b6 {[%emt 0:01:20]} 5. Bg2 {[%emt 0:00:57]} Bb7 {[%emt 0:00:04]} 6. O-O {[%emt 0:00:22]} Qc7 {[%emt 0:00:32]} 7. Re1 {[%emt 0:00:46]} d6 {[%emt 0:00:44]} 8. d4 {[%emt 0:00:15]} cxd4 {[%emt 0:00:01]} 9. Nxd4 {[%emt 0:00:15]} Be7 {[%emt 0:00:09]} 10. Nd5 {[%emt 0:00:42]} exd5 {[%emt 0:00:11]} 11. exd5 {[%emt 0:00:15]} Bc8 {[%emt 0:00:04]} 12. a4 {[%emt 0:12:01]} Nf6 {[%emt 0:01:51]} 13. Qe2 {[%emt 0:15:42]} Ra7 {[%emt 0:00:12]} 14. Ra3 {[%emt 0:03:01]} O-O {[%emt 0:02:27]} 15. Bg5 {[%emt 0:16:38]} Nxd5 {[%emt 0:07:18]} 16. Bxd5 {[%emt 0:11:44]} Bxg5 {[%emt 0:00:14]} 17. Qh5 {[%emt 0:00:07]} h6 {[%emt 0:05:39]} 18. Rf3 {[%emt 0:14:56]} Qc5 {[%emt 0:03:43]} 0-1

[Event "IV Estrellas 2022"]
[Site "La Palma"]
[Date "2022.08.07"]
[Round "2.13"]
[White "Del Rey, Diego"]
[Black "Ramirez Maillo, Cristian"]
[Result "1-0"]
[ECO "E61"]
[WhiteElo "2358"]
[BlackElo "1896"]
[Annotator "RC"]
[PlyCount "49"]
[EventDate "2022.08.06"]
[EventType "swiss"]
[EventCountry "ESP"]
[SourceTitle "playchess.com"]
[Source "ChessBase"]
[SourceQuality "1"]
[TimeControl "5400+30"]

1. d4 {[%emt 0:00:02]} Nf6 {[%emt 0:00:06]} 2. Nf3 {[%emt 0:00:10]} g6 {[%emt 0:00:33]} 3. c4 {[%emt 0:00:16]} Bg7 {[%emt 0:00:14]} 4. Nc3 {[%emt 0:00:08]} O-O {[%emt 0:00:15]} 5. Bg5 {[%emt 0:00:07]} d6 {[%emt 0:01:15]} 6. e3 {[%emt 0:00:07]} c5 {[%emt 0:01:12]} 7. Be2 {[%emt 0:00:15]} Bf5 {[%emt 0:00:57]} 8. O-O {[%emt 0:00:21]} Nbd7 {[%emt 0:00:53]} 9. h3 {[%emt 0:00:52]} h6 {[%emt 0:03:39]} 10. Bh4 {[%emt 0:00:05]} Qb6 {[%emt 0:01:11]} 11. g4 {[%emt 0:08:16]} Be4 {[%emt 0:02:15]} 12. Nxe4 {[%emt 0:01:21]} Nxe4 {[%emt 0:00:05]} 13. Qc2 {[%emt 0:01:12]} f5 {[%emt 0:09:29]} 14. gxf5 {[%emt 0:01:13]} gxf5 {[%emt 0:01:02]} 15. Bd3 {[%emt 0:02:05]} cxd4 {[%emt 0:13:19]} 16. exd4 {[%emt 0:03:32]} Ndf6 {[%emt 0:09:08]} 17. Kh1 {[%emt 0:07:58]} Qc6 {[%emt 0:06:47]} 18. Rg1 {[%emt 0:16:02]} Kh8 {[%emt 0:04:55]} 19. d5 {[%emt 0:12:17]} Qd7 {[%emt 0:00:31]} 20. Nd4 {[%emt 0:05:32]} Nxd5 {[%emt 0:16:02]} 21. Rxg7 {[%emt 0:06:20]} Kxg7 {[%emt 0:02:50]} 22. cxd5 {[%emt 0:00:24]} Rac8 {[%emt 0:00:14]} 23. Qe2 {[%emt 0:00:54]} Rf7 {[%emt 0:07:59]} 24. Qh5 {[%emt 0:03:34]} Rh8 {[%emt 0:04:24]} 25. Ne6+ {[%emt 0:00:21]} 1-0

[Event "IV Estrellas 2022"]
[Site "La Palma"]
[Date "2022.08.07"]
[Round "2.14"]
[White "Perogio, Lorenzo"]
[Black "Acosta Sosa, Juan Manuel"]
[Result "0-1"]
[ECO "B23"]
[WhiteElo "1890"]
[BlackElo "2310"]
[Annotator "RC"]
[PlyCount "46"]
[EventDate "2022.08.06"]
[EventType "swiss"]
[EventCountry "ESP"]
[SourceTitle "playchess.com"]
[Source "ChessBase"]
[SourceQuality "1"]
[TimeControl "5400+30"]

1. e4 {[%emt 0:00:03]} c5 {[%emt 0:00:09]} 2. Nc3 {[%emt 0:00:10]} Nc6 {[%emt 0:00:11]} 3. f4 {[%emt 0:00:14]} g6 {[%emt 0:00:11]} 4. Nf3 {[%emt 0:00:14]} Bg7 {[%emt 0:00:06]} 5. Bb5 {[%emt 0:00:39]} Nd4 {[%emt 0:00:18]} 6. O-O {[%emt 0:00:45]} a6 {[%emt 0:00:39]} 7. Bd3 {[%emt 0:02:10]} e6 {[%emt 0:01:18]} 8. Ne2 {[%emt 0:05:30]} Nxf3+ {[%emt 0:02:15]} 9. Rxf3 {[%emt 0:00:17]} d5 {[%emt 0:00:08]} 10. c3 {[%emt 0:02:17]} Ne7 {[%emt 0:01:17]} 11. Ng3 {[%emt 0:05:28]} O-O {[%emt 0:01:19]} 12. Bc2 {[%emt 0:02:07]} b5 {[%emt 0:02:15]} 13. f5 {[%emt 0:02:37]} Nc6 {[%emt 0:03:04]} 14. Rf1 {[%emt 0:09:50]} d4 {[%emt 0:01:16]} 15. cxd4 {[%emt 0:03:51]} Nxd4 {[%emt 0:00:58]} 16. fxg6 {[%emt 0:02:43]} hxg6 {[%emt 0:00:25]} 17. d3 {[%emt 0:00:43]} Ra7 {[%emt 0:01:30]} 18. Ne2 {[%emt 0:06:38]} Qh4 {[%emt 0:12:57]} 19. g3 {[%emt 0:08:23]} Qh8 {[%emt 0:03:46]} 20. Rb1 {[%emt 0:02:01]} Rd7 {[%emt 0:00:54]} 21. b3 {[%emt 0:05:18]} Bb7 {[%emt 0:01:01]} 22. Bg5 {[%emt 0:00:34]} Qh5 {[%emt 0:01:49]} 23. Nxd4 {[%emt 0:00:56]} Bxd4+ {[%emt 0:00:09]} 0-1

[Event "IV Estrellas 2022"]
[Site "La Palma"]
[Date "2022.08.07"]
[Round "2.15"]
[White "Brito Garcia, Alfredo"]
[Black "Gil Jimenez, Ruben"]
[Result "1-0"]
[ECO "A07"]
[WhiteElo "2291"]
[BlackElo "1675"]
[Annotator "RC"]
[PlyCount "75"]
[EventDate "2022.08.06"]
[EventType "swiss"]
[EventCountry "ESP"]
[SourceTitle "playchess.com"]
[Source "ChessBase"]
[SourceQuality "1"]
[TimeControl "5400+30"]

1. Nf3 {[%emt 0:00:13]} d5 {[%emt 0:00:06]} 2. g3 {[%emt 0:00:08]} c6 {[%emt 0:00:04]} 3. Bg2 {[%emt 0:00:07]} Bg4 {[%emt 0:00:41]} 4. h3 {[%emt 0:02:09]} Bh5 {[%emt 0:00:12]} 5. d3 {[%emt 0:01:45]} e6 {[%emt 0:01:07]} 6. O-O {[%emt 0:00:48]} f5 {[%emt 0:02:09]} 7. c4 {[%emt 0:06:21]} Nf6 {[%emt 0:08:09]} 8. Qb3 {[%emt 0:01:47]} Qb6 {[%emt 0:04:23]} 9. Qc2 {[%emt 0:02:50]} Nbd7 {[%emt 0:11:52]} 10. Be3 {[%emt 0:13:23]} Bc5 {[%emt 0:04:59]} 11. Bxc5 {[%emt 0:05:40]} Qxc5 {[%emt 0:00:31]} 12. Nbd2 {[%emt 0:08:09]} Bxf3 {[%emt 0:13:45]} 13. Nxf3 {[%emt 0:05:03]} O-O {[%emt 0:01:17]} 14. b4 {[%emt 0:04:04]} Qd6 {[%emt 0:09:54]} 15. d4 {[%emt 0:00:39]} dxc4 {[%emt 0:05:14]} 16. Qxc4 {[%emt 0:01:53]} Nb6 {[%emt 0:03:25]} 17. Qb3 {[%emt 0:00:15]} Qd5 {[%emt 0:10:33]} 18. Rab1 {[%emt 0:04:42]} Qxb3 {[%emt 0:04:28]} 19. Rxb3 {[%emt 0:00:56]} a6 {[%emt 0:02:10]} 20. e3 {[%emt 0:04:13]} Ne4 {[%emt 0:03:09]} 21. Rc1 {[%emt 0:01:41]} Nd5 {[%emt 0:01:25]} 22. Ne5 {[%emt 0:01:21]} Nd6 {[%emt 0:02:06]} 23. Bf1 {[%emt 0:03:14]} Nc7 {[%emt 0:03:54]} 24. Nd7 {[%emt 0:06:04]} Rf7 {[%emt 0:01:52]} 25. Nc5 {[%emt 0:00:20]} a5 {[%emt 0:01:59]} 26. bxa5 {[%emt 0:00:56]} Rxa5 {[%emt 0:03:24]} 27. Nxb7 {[%emt 0:00:43]} Nxb7 {[%emt 0:00:25]} 28. Rxb7 {[%emt 0:00:12]} Rxa2 {[%emt 0:00:42]} 29. Rxc6 {[%emt 0:00:49]} Ne8 {[%emt 0:00:22]} 30. Rxf7 {[%emt 0:01:47]} Kxf7 {[%emt 0:00:05]} 31. Bc4 {[%emt 0:00:14]} Ra1+ {[%emt 0:00:53]} 32. Kg2 {[%emt 0:00:09]} Nf6 {[%emt 0:00:12]} 33. Rxe6 {[%emt 0:01:25]} Kg6 {[%emt 0:00:55]} 34. Bd3 {[%emt 0:00:28]} Rd1 {[%emt 0:00:24]} 35. Bc2 {[%emt 0:00:16]} Rd2 {[%emt 0:00:11]} 36. Rc6 {[%emt 0:00:13]} Kg5 {[%emt 0:00:44]} 37. Kf1 {[%emt 0:01:16]} Ne4 {[%emt 0:00:21]} 38. Ke1 {[%emt 0:00:28]} 1-0

[Event "IV Estrellas 2022"]
[Site "La Palma"]
[Date "2022.08.07"]
[Round "2.16"]
[White "Rodriguez Bittar, Karim Javier"]
[Black "Estremera Panos, Sergio"]
[Result "1/2-1/2"]
[ECO "B26"]
[WhiteElo "1881"]
[BlackElo "2262"]
[Annotator "RC"]
[PlyCount "100"]
[EventDate "2022.08.06"]
[EventType "swiss"]
[EventCountry "ESP"]
[SourceTitle "playchess.com"]
[Source "ChessBase"]
[SourceQuality "1"]
[TimeControl "5400+30"]

1. e4 {[%emt 0:00:12]} c5 {[%emt 0:00:31]} 2. Nc3 {[%emt 0:00:09]} Nc6 {[%emt 0:00:18]} 3. g3 {[%emt 0:00:06]} g6 {[%emt 0:00:27]} 4. Bg2 {[%emt 0:00:12]} Bg7 {[%emt 0:00:12]} 5. Nge2 {[%emt 0:01:22]} d6 {[%emt 0:00:30]} 6. d3 {[%emt 0:00:55]} e5 {[%emt 0:01:48]} 7. Be3 {[%emt 0:03:27]} Nge7 {[%emt 0:00:31]} 8. Qd2 {[%emt 0:01:08]} Nd4 {[%emt 0:00:53]} 9. h3 {[%emt 0:00:07]} O-O {[%emt 0:00:27]} 10. f4 {[%emt 0:01:24]} Be6 {[%emt 0:02:32]} 11. O-O {[%emt 0:01:56]} Qd7 {[%emt 0:03:08]} 12. Kh2 {[%emt 0:00:55]} Rae8 {[%emt 0:03:20]} 13. Rae1 {[%emt 0:07:58]} b6 {[%emt 0:01:12]} 14. fxe5 {[%emt 0:17:28]} dxe5 {[%emt 0:01:02]} 15. Ng1 {[%emt 0:09:47]} f6 {[%emt 0:13:31]} 16. b3 {[%emt 0:03:18]} Rd8 {[%emt 0:03:42]} 17. a4 {[%emt 0:02:03]} Nec6 {[%emt 0:06:25]} 18. Na2 {[%emt 0:02:38]} Rc8 {[%emt 0:04:19]} 19. Nc1 {[%emt 0:01:47]} Rfd8 {[%emt 0:13:41]} 20. Qd1 {[%emt 0:43:38]} Qf7 {[%emt 0:21:43]} 21. Rf2 {[%emt 0:00:00]} Na5 {[%emt 0:04:16]} 22. Nf3 {[%emt 0:00:00]} Nxf3+ {[%emt 0:00:12]} 23. Qxf3 {[%emt 0:00:00]} Nc6 {[%emt 0:00:15]} 24. Ref1 {[%emt 0:00:00]} Nd4 {[%emt 0:01:07]} 25. Qd1 {[%emt 0:00:00]} Qe7 {[%emt 0:01:15]} 26. Ne2 {[%emt 0:00:00]} Nc6 {[%emt 0:00:57]} 27. Qb1 {[%emt 0:00:00]} Nb4 {[%emt 0:02:10]} 28. Rd1 {[%emt 0:00:00]} Rd7 {[%emt 0:00:56]} 29. Rff1 {[%emt 0:00:00]} Rcd8 {[%emt 0:00:11]} 30. Bd2 {[%emt 0:00:00]} h5 {[%emt 0:02:56]} 31. Ng1 {[%emt 0:00:00]} Nc6 {[%emt 0:00:42]} 32. Nf3 {[%emt 0:00:00]} Kh7 {[%emt 0:00:34]} 33. Be3 {[%emt 0:00:00]} Nd4 {[%emt 0:00:31]} 34. Nh4 {[%emt 0:00:00]} Bf7 {[%emt 0:02:55]} 35. Rf2 {[%emt 0:00:00]} g5 {[%emt 0:00:38]} 36. Nf5 {[%emt 0:00:00]} Nxf5 {[%emt 0:00:07]} 37. Rxf5 {[%emt 0:00:24]} c4 {[%emt 0:00:24]} 38. bxc4 {[%emt 0:00:54]} Bxc4 {[%emt 0:00:18]} 39. Rdf1 {[%emt 0:00:27]} Be6 {[%emt 0:00:13]} 40. R5f2 {[%emt 0:00:41]} Kg6 {[%emt 0:04:52]} 41. Rd2 {[%emt 0:02:46]} Qa3 {[%emt 0:00:34]} 42. Qb5 {[%emt 0:00:50]} Qc3 {[%emt 0:01:08]} 43. Rfd1 {[%emt 0:00:50]} Rc7 {[%emt 0:01:47]} 44. Bg1 {[%emt 0:01:00]} Bf7 {[%emt 0:01:44]} 45. Bf2 {[%emt 0:00:43]} Be8 {[%emt 0:00:21]} 46. Qa6 {[%emt 0:01:11]} Qb4 {[%emt 0:00:36]} 47. d4 {[%emt 0:00:56]} Qxa4 {[%emt 0:00:28]} 48. Qe2 {[%emt 0:00:19]} exd4 {[%emt 0:01:28]} 49. Bxd4 {[%emt 0:00:02]} Rc4 {[%emt 0:00:25]} 50. c3 {[%emt 0:00:10]} Qc6 {[%emt 0:01:18]} 1/2-1/2

[Event "IV Estrellas 2022"]
[Site "La Palma"]
[Date "2022.08.07"]
[Round "2.17"]
[White "Cubas Cabrera, Angel Luis"]
[Black "Baeza Escudero, Javier"]
[Result "1-0"]
[ECO "E05"]
[WhiteElo "2207"]
[BlackElo "1861"]
[Annotator "RC"]
[PlyCount "93"]
[EventDate "2022.08.06"]
[EventType "swiss"]
[EventCountry "ESP"]
[SourceTitle "playchess.com"]
[Source "ChessBase"]
[SourceQuality "1"]
[TimeControl "5400+30"]

1. d4 {[%emt 0:00:04]} Nf6 {[%emt 0:00:09]} 2. Nf3 {[%emt 0:00:08]} d5 {[%emt 0:00:12]} 3. g3 {[%emt 0:00:16]} e6 {[%emt 0:01:17]} 4. Bg2 {[%emt 0:00:31]} Be7 {[%emt 0:00:20]} 5. O-O {[%emt 0:00:29]} O-O {[%emt 0:00:09]} 6. c4 {[%emt 0:00:04]} dxc4 {[%emt 0:00:24]} 7. Qc2 {[%emt 0:00:31]} a6 {[%emt 0:00:17]} 8. a4 {[%emt 0:00:09]} Bd7 {[%emt 0:02:03]} 9. Qxc4 {[%emt 0:00:32]} b5 {[%emt 0:04:38]} 10. Qc2 {[%emt 0:03:13]} Bc6 {[%emt 0:03:42]} 11. Bg5 {[%emt 0:04:40]} Be4 {[%emt 0:04:43]} 12. Qd1 {[%emt 0:00:32]} b4 {[%emt 0:10:54]} 13. Nbd2 {[%emt 0:05:17]} Bd5 {[%emt 0:12:16]} 14. Qc2 {[%emt 0:08:56]} Nbd7 {[%emt 0:05:14]} 15. Bxf6 {[%emt 0:07:35]} gxf6 {[%emt 0:06:06]} 16. Rfd1 {[%emt 0:06:25]} f5 {[%emt 0:08:47]} 17. e4 {[%emt 0:05:09]} fxe4 {[%emt 0:00:10]} 18. Nxe4 {[%emt 0:00:16]} Ra7 {[%emt 0:05:43]} 19. Ne5 {[%emt 0:09:09]} Nxe5 {[%emt 0:05:27]} 20. dxe5 {[%emt 0:00:06]} c6 {[%emt 0:06:36]} 21. Qc1 {[%emt 0:04:03]} f5 {[%emt 0:05:09]} 22. Nc5 {[%emt 0:16:22]} Qb6 {[%emt 0:00:51]} 23. Nd3 {[%emt 0:01:32]} Bxg2 {[%emt 0:06:42]} 24. Kxg2 {[%emt 0:00:10]} Kg7 {[%emt 0:04:56]} 25. Qc4 {[%emt 0:02:02]} c5 {[%emt 0:00:53]} 26. Nf4 {[%emt 0:05:35]} Kf7 {[%emt 0:00:05]} 27. Rac1 {[%emt 0:06:15]} Re8 {[%emt 0:01:55]} 28. Kg1 {[%emt 0:01:14]} Raa8 {[%emt 0:00:34]} 29. a5 {[%emt 0:02:53]} Qc6 {[%emt 0:01:06]} 30. Qxb4 {[%emt 0:00:51]} Rab8 {[%emt 0:00:05]} 31. Qc3 {[%emt 0:00:12]} Qb5 {[%emt 0:00:44]} 32. Rc2 {[%emt 0:01:11]} Rec8 {[%emt 0:00:28]} 33. Qf3 {[%emt 0:03:53]} Qb3 {[%emt 0:01:49]} 34. Qh5+ {[%emt 0:02:21]} Kg8 {[%emt 0:00:36]} 35. Rcd2 {[%emt 0:00:02]} Rb7 {[%emt 0:02:02]} 36. Qh6 {[%emt 0:01:01]} Bf8 {[%emt 0:00:45]} 37. Qxe6+ {[%emt 0:01:03]} Qxe6 {[%emt 0:00:07]} 38. Nxe6 {[%emt 0:00:01]} Bh6 {[%emt 0:00:10]} 39. Rd8+ {[%emt 0:01:59]} Rxd8 {[%emt 0:00:06]} 40. Rxd8+ {[%emt 0:00:06]} Kf7 {[%emt 0:00:08]} 41. Nxc5 {[%emt 0:00:06]} Rxb2 {[%emt 0:00:14]} 42. Rd7+ {[%emt 0:00:24]} Kg8 {[%emt 0:00:40]} 43. Nxa6 {[%emt 0:01:28]} Rb5 {[%emt 0:00:15]} 44. e6 {[%emt 0:00:30]} Bg5 {[%emt 0:01:06]} 45. Nc7 {[%emt 0:00:29]} Rxa5 {[%emt 0:00:17]} 46. e7 {[%emt 0:00:08]} Bxe7 {[%emt 0:00:30]} 47. Rxe7 {[%emt 0:00:04]} 1-0

[Event "IV Estrellas 2022"]
[Site "La Palma"]
[Date "2022.08.07"]
[Round "2.18"]
[White "Marin Dorta, Alejandro"]
[Black "Capote Robayna, Nathaniel"]
[Result "1-0"]
[ECO "B22"]
[WhiteElo "1869"]
[BlackElo "2150"]
[Annotator "RC"]
[PlyCount "67"]
[EventDate "2022.08.06"]
[EventType "swiss"]
[EventCountry "ESP"]
[SourceTitle "playchess.com"]
[Source "ChessBase"]
[SourceQuality "1"]
[TimeControl "5400+30"]

1. e4 {[%emt 0:00:04]} c5 {[%emt 0:00:12]} 2. Nf3 {[%emt 0:00:22]} Nc6 {[%emt 0:00:11]} 3. c3 {[%emt 0:00:11]} d5 {[%emt 0:00:17]} 4. exd5 {[%emt 0:00:26]} Qxd5 {[%emt 0:00:12]} 5. d4 {[%emt 0:00:31]} Bf5 {[%emt 0:00:10]} 6. Be3 {[%emt 0:00:34]} Nf6 {[%emt 0:02:47]} 7. Na3 {[%emt 0:04:15]} cxd4 {[%emt 0:04:34]} 8. Nb5 {[%emt 0:02:02]} O-O-O {[%emt 0:02:11]} 9. Nbxd4 {[%emt 0:01:28]} Nxd4 {[%emt 0:08:18]} 10. Bxd4 {[%emt 0:10:22]} Bg4 {[%emt 0:10:22]} 11. Be2 {[%emt 0:06:12]} e6 {[%emt 0:21:23]} 12. Qa4 {[%emt 0:05:12]} e5 {[%emt 0:16:53]} 13. Bxa7 {[%emt 0:08:41]} Bxf3 {[%emt 0:05:33]} 14. gxf3 {[%emt 0:01:18]} Qd2+ {[%emt 0:02:09]} 15. Kf1 {[%emt 0:00:14]} Bd6 {[%emt 0:00:09]} 16. Qb3 {[%emt 0:11:28]} Qh6 {[%emt 0:02:21]} 17. h4 {[%emt 0:03:05]} Nh5 {[%emt 0:00:25]} 18. Qc4+ {[%emt 0:07:50]} Bc7 {[%emt 0:00:18]} 19. Qg4+ {[%emt 0:01:06]} Rd7 {[%emt 0:00:37]} 20. Bb5 {[%emt 0:01:21]} Nf6 {[%emt 0:00:17]} 21. Bxd7+ {[%emt 0:00:55]} Nxd7 {[%emt 0:00:09]} 22. Be3 {[%emt 0:00:49]} Qa6+ {[%emt 0:00:12]} 23. Kg2 {[%emt 0:01:03]} g6 {[%emt 0:00:48]} 24. Rhd1 {[%emt 0:02:11]} f5 {[%emt 0:22:02]} 25. Qb4 {[%emt 0:01:10]} f4 {[%emt 0:00:00]} 26. Bc5 {[%emt 0:03:14]} Nxc5 {[%emt 0:00:00]} 27. Qxc5 {[%emt 0:01:21]} Qf6 {[%emt 0:00:00]} 28. Rd5 {[%emt 0:03:53]} e4 {[%emt 0:00:00]} 29. Qd4 {[%emt 0:03:56]} exf3+ {[%emt 0:00:00]} 30. Kxf3 {[%emt 0:00:38]} Qf8 {[%emt 0:00:00]} 31. Rd1 {[%emt 0:02:12]} Rg8 {[%emt 0:00:00]} 32. b4 {[%emt 0:08:49]} Qh6 {[%emt 0:00:00]} 33. Qa7 {[%emt 0:01:39]} Qxh4 {[%emt 0:00:00]} 34. Qa8+ {[%emt 0:00:18]} 1-0